Cogmind - Beta 15 @@@ ROGUE MODE // 2025.08.27 @ 00:34:16 Player: SpeltIncorrectyl Result: Destroyed by H-71 Marshal with Heavy Mass Driver Performance ------------- Evolutions (5) 2500 Regions Visited (15) 3000 Robots Destroyed (91) 455 Value Destroyed (2527) 2527 Prototype IDs (27) 540 Alien Tech Used (0) 0 Bonus (926) 926 TOTAL SCORE: 9948 Bonus ------- High Alert Combat Kills 11 Follower Combat Kills 115 Entered DSFs 500 Aligned with FarCom 300 Cogmind --------- Core Integrity 0/1000 Matter 14/300 Energy 22/100 System Corruption 0% Temperature Cool (36) Movement Core (50) Location -5/DSF Parts ------- > --- POWER (1) -------- (None) > --- PROPULSION (5) --- (None) > --- UTILITY (7) ------ Improved Targeting Computer Advanced Hacking Suite Advanced Hacking Suite Advanced Hacking Suite System Shield > --- WEAPON (4) ------- (None) > --- INVENTORY (5) ---- Improved Deuterium Engine Light Fission Core Gravmag System Gravmag System Improved Light Armor Plating Peak State ------------ > --- POWER ------------ Micro Nuclear Core > --- PROPULSION ------- Flying Fortress v7 > --- UTILITY ---------- Improved Targeting Computer Hardened Medium Armor Plating Improved Light Armor Plating Hacking Suite Hacking Suite Hacking Suite > --- WEAPON ----------- Precision Assault Rifle Precision Assault Rifle Precision Assault Rifle Precision Assault Rifle > --- INVENTORY -------- Light Deuterium Engine Airjet Airjet Gravmag System Rocket Launcher [Rating: 74] Favorites ----------- Power Light Deuterium Engine Engine Light Deuterium Engine Power Core Micro Nuclear Core Propulsion Armored Treads Treads Armored Treads Leg Improved Aluminum Leg Hover Unit Gravmag System Flight Unit Flying Fortress v7 Utility Hacking Suite Device Transmission Jammer Storage Large Storage Unit Processor Improved Targeting Computer Hackware Hacking Suite Protection Hardened Medium Armor Plating Weapon High-powered Shotgun Ballistic Gun High-powered Shotgun Ballistic Cannon Advanced Assault Cannon Launcher Rocket Launcher Special Melee Weapon Datajack Build | -11 -10 -10 -9 -9 -9 -8 -8 -7 -7 -7 -7 -7 -6 -5 -5 ------- Run | Yrd Mat Min Mat Min Exi Min Mat Fac Was Fac Low Low Fac Fac DSF Slots Evolved 10 | . . . 2 . . . 2 2 . . . . 2 2 . Power . | . . . . . . . . . . . . . . . . Propulsion 3 | . . . 1 . . . 1 . . . . . . 1 . Utility 5 | . . . . . . . 1 2 . . . . 1 1 . Weapon 2 | . . . 1 . . . . . . . . . 1 . . Parts Attached 72 | 6 15 3 10 2 1 . 5 2 . 9 . . 8 1 10 Power 9 | 1 4 1 1 . . . . . . 1 . . 1 . . Engine 8 | 1 4 1 1 . . . . . . . . . 1 . . Core 1 | . . . . . . . . . . 1 . . . . . Reactor . | . . . . . . . . . . . . . . . . Propulsion 17 | 2 6 1 3 . . . 1 . . . . . . . 4 Treads 4 | . . 1 3 . . . . . . . . . . . . Leg 7 | 2 5 . . . . . . . . . . . . . . Wheel . | . . . . . . . . . . . . . . . . Hover 4 | . . . . . . . . . . . . . . . 4 Flight 2 | . 1 . . . . . 1 . . . . . . . . Utility 22 | 1 . 1 2 . . . 1 2 . 2 . . 6 1 6 Device 1 | . . . . . . . . . . . . . 1 . . Storage 4 | 1 . . 2 . . . . . . . . . 1 . . Processor 1 | . . . . . . . 1 . . . . . . . . Hackware 12 | . . 1 . . . . . . . 1 . . 3 1 6 Protection 4 | . . . . . . . . 2 . 1 . . 1 . . Artifact . | . . . . . . . . . . . . . . . . Weapon 24 | 2 5 . 4 2 1 . 3 . . 6 . . 1 . . Energy Gun . | . . . . . . . . . . . . . . . . Energy Cannon . | . . . . . . . . . . . . . . . . Ballistic Gun 20 | 2 5 . 3 . 1 . 3 . . 5 . . 1 . . Ballistic Cannon 1 | . . . . 1 . . . . . . . . . . . Launcher 2 | . . . 1 1 . . . . . . . . . . . Special Weapon . | . . . . . . . . . . . . . . . . Impact Weapon . | . . . . . . . . . . . . . . . . Slashing Weapon . | . . . . . . . . . . . . . . . . Piercing Weapon . | . . . . . . . . . . . . . . . . Special Melee Weapon 1 | . . . . . . . . . . 1 . . . . . Unidentified Prototypes 4 | . . . 1 . . . . . . 2 . . 1 . . Parts Lost 19 | . 2 . 1 . . . 1 . . 1 . 1 7 . 6 Power 3 | . 1 . 1 . . . . . . . . . 1 . . Propulsion 5 | . 1 . . . . . . . . . . . 1 . 3 Utility 6 | . . . . . . . . . . 1 . 1 2 . 2 Weapon 5 | . . . . . . . 1 . . . . . 3 . 1 Highest Loss Streak 6 | . 1 . 1 . . . 1 . . 1 . 1 6 . 6 To Critical Strikes . | . . . . . . . . . . . . . . . . Average Backups 10 | 1 7 8 14 14 12 10 9 14 14 14 15 15 5 9 7 Power . | . . . 1 1 1 1 . . . . 1 1 1 2 2 Propulsion 3 | . 3 3 4 5 3 1 1 6 6 5 5 5 2 5 3 Utility 2 | . . 1 3 3 3 3 2 4 4 4 5 5 1 1 1 Weapon 3 | . 2 2 5 5 5 5 4 4 4 3 3 3 . . . Tool/Special . | . . . . . . . . . . . . . . . . Unused Backups 40 | . 5 . 2 1 5 . 3 . 1 12 . . 6 . 5 Power 4 | . . . 2 . . . . . . . . . . . 2 Propulsion 20 | . 4 . . . 5 . 1 . . 3 . . 5 . 2 Utility 9 | . . . . . . . 1 . 1 5 . . 1 . 1 Weapon 7 | . 1 . . 1 . . 1 . . 4 . . . . . Tool/Special . | . . . . . . . . . . . . . . . . Average Slot Usage (%) 84 | . 80 79 98 100 100 100 80 74 76 75 76 76 76 63 54 Engine 8 | . 13 14 11 11 11 11 8 7 7 3 . . 1 5 3 Core 1 | . . . . . . . . . . 3 7 7 4 . . Treads 13 | . . 10 32 33 33 33 18 . . . . . . . . Leg 3 | . 24 6 . . . . . . . . . . . . . Flight 2 | . . . . . . . 2 7 7 7 7 7 5 5 1 Storage 9 | . 14 14 11 11 11 11 9 7 7 7 7 7 1 5 3 Processor 2 | . . . . . . . 5 7 7 7 7 7 6 5 5 Hackware 9 | . . 4 11 11 11 11 9 7 7 7 7 7 18 16 18 Protection 4 | . . . . . . . . 12 15 15 15 15 11 5 3 Ballistic Gun 24 | . 27 28 32 20 14 20 18 23 23 22 23 23 23 11 5 Ballistic Cannon 1 | . . . . 7 11 11 7 . . . . . . . . Peak Build Rating 74 | 6 9 11 29 30 33 33 53 60 60 65 65 65 74 72 72 Average Rating 37 | 3 8 7 26 29 31 32 39 59 59 63 65 64 71 71 48 On Entrance 40 | . 6 8 11 29 30 33 33 53 60 60 65 65 64 66 72 Naked Turns . | . . . . . . . . . . . . . . . . Heaviest Build 94 | 10 14 14 94 42 42 41 42 45 45 47 47 47 43 40 40 Greatest Support 60 | 20 26 26 60 60 60 60 60 50 50 50 50 50 50 50 50 Greatest Overweight (x) 31 | . 3 . 31 . . . 1 . . . . . 10 . 2 Average Overweight (x) . | . . . . . . . . . . . . . . . . Largest Inventory Capacity 25 | 8 8 8 25 15 15 15 15 15 15 15 15 15 15 10 10 Average Capacity 12 | 6 8 8 21 15 15 15 15 15 15 15 15 15 6 10 8 Most Carried 19 | 5 8 8 19 14 14 13 15 15 15 15 15 15 14 10 10 Average Carried 10 | 1 7 7 14 13 13 13 11 14 14 14 15 15 5 9 7 Final Capacity 15 | 8 8 8 15 15 15 15 15 15 15 15 15 15 10 10 5 Final Carried 15 | 1 8 8 14 14 13 13 13 15 15 15 15 15 9 10 5 Class Distribution -------------------- 33% | Gunner 25% | Mutant 14% | Tank 12% | Hacker-Tank 7% | Skirmisher 5% | Hacker-Mutant Dominant Class ---------------- Mutant | -10/Materials Mutant | -10/Mines Gunner | -9/Materials Gunner | -9/Mines Gunner | -9/Exiles Skirmisher | -8/Mines Skirmisher | -8/Materials Tank | -7/Factory Tank | -7/Waste Tank | -7/Factory Tank | -7/Lower Caves Tank | -7/Lower Caves Hacker-Tank | -6/Factory Hacker-Mutant | -5/Factory Hacker-Mutant | -5/DSF Resources | -11 -10 -10 -9 -9 -9 -8 -8 -7 -7 -7 -7 -7 -6 -5 -5 ----------- Run | Yrd Mat Min Mat Min Exi Min Mat Fac Was Fac Low Low Fac Fac DSF Matter Collected 2451 | 241 318 46 285 81 . 6 419 108 . 357 95 . 490 . 5 Remotely . | . . . . . . . . . . . . . . . . Salvage Created 2886 | . 448 32 343 . . 39 473 . . 547 139 . 865 . . Parts 202 | . 37 4 26 . . 11 23 . . 31 12 . 58 . . Haulers Intercepted 10 | . . . 3 . . . 1 . . 4 . . 2 . . Recyclers Shooed 2 | . . 1 1 . . . . . . . . . . . . Parts Field Recycled . | . . . . . . . . . . . . . . . . Retrieved Matter . | . . . . . . . . . . . . . . . . Parts Self-Destructed 11 | . . . . . . . . . . . 11 . . . . Prevented . | . . . . . . . . . . . . . . . . Kills | -11 -10 -10 -9 -9 -9 -8 -8 -7 -7 -7 -7 -7 -6 -5 -5 ------- Run | Yrd Mat Min Mat Min Exi Min Mat Fac Was Fac Low Low Fac Fac DSF Combat Hostiles Destroyed 69 | . 13 2 5 2 . 4 15 . . 6 5 . 17 . . Guns 55 | . 13 2 5 . . 1 9 . . 6 5 . 14 . . Cannons 5 | . . . . . . 1 4 . . . . . . . . AOE 9 | . . . . 2 . 2 2 . . . . . 3 . . Classes Destroyed 13 | . 4 . 6 1 . . . . . 2 . . . . . Worker 1 | . . . 1 . . . . . . . . . . . . Builder 2 | . 1 . . . . 1 . . . . . . . . . Tunneler 3 | . . . 1 . . . 1 . . . . . 1 . . Hauler 10 | . . . 3 . . . 1 . . 4 . . 2 . . Recycler 2 | . . . 1 . . . 1 . . . . . . . . Operator 3 | . . . 1 . . . . . . 1 . . 1 . . Watcher 3 | . 2 . . . . . . . . . . . 1 . . Swarmer 33 | . 6 2 2 . . 4 8 . . . 4 . 7 . . Grunt 17 | . 7 . 1 . . . 6 . . 2 . . 1 . . Sentry 3 | . . . 2 . . . 1 . . . . . . . . Hunter 8 | . . . . . . . . . . 3 . . 5 . . Programmer 6 | . . . . . . . . . . 1 1 . 4 . . Assembled 2 | . . . . 2 . . . . . . . . . . . Best Kill Streak 9 | . 3 2 5 2 . 5 6 . . 2 3 . 9 . . Combat Bots Only 7 | . 3 2 2 2 . 4 6 . . 2 3 . 7 . . Max Kills in Single Turn 3 | . 1 1 1 1 . 3 3 . . 1 1 . 2 . . Gunslinging . | . . . . . . . . . . . . . . . . Exploded 2 | . . . . 1 . 2 2 . . . . . 1 . . Melee . | . . . . . . . . . . . . . . . . Uniques/NPCs Destroyed . | . . . . . . . . . . . . . . . . Combat | -11 -10 -10 -9 -9 -9 -8 -8 -7 -7 -7 -7 -7 -6 -5 -5 -------- Run | Yrd Mat Min Mat Min Exi Min Mat Fac Was Fac Low Low Fac Fac DSF Hostile Shots Fired 641 | . 70 9 33 2 . 10 89 . . 46 13 13 207 . 149 Missed 235 | . 14 4 9 . . 2 25 . . 22 2 6 95 . 56 Hits 406 | . 56 5 24 2 . 8 64 . . 24 11 7 112 . 93 Melee 16 | . . . . . . . . . . . . . . . 16 Projectile 390 | . 56 5 24 2 . 8 64 . . 24 11 7 112 . 77 Critical Strikes 12 | . . . . 1 . . 2 . . . . 2 . . 7 Actively Blocked 1 | . . . . . . . . . . . . 1 . . . Damage Taken 5487 | . 668 37 307 33 . 68 809 . . 213 176 105 1385 . 1686 Core 1271 | . 54 9 13 12 . 10 28 . . 27 . . 56 . 1062 Absorbed by Shields 53 | . . . . . . . . . . . . . . . 53 Redirected to Shielding 52 | . . . . . . . . . . 6 29 17 . . . Core Remaining (%) 91 | 100 . 74 . . . 91 94 . . . . 96 93 . . Volleys Fired 169 | . 55 3 16 5 . 2 25 . . 19 6 . 31 . 7 Largest 4 | . 2 2 3 1 . 3 3 . . 3 3 . 4 . 2 Hottest 117 | . 40 40 75 33 . 90 90 . . 84 84 . 117 . 56 Shots Fired 451 | . 110 6 48 5 . 4 73 . . 55 18 . 119 . 13 Gun 412 | . 110 6 48 . . 2 48 . . 55 18 . 112 . 13 Cannon 25 | . . . . . . 1 24 . . . . . . . . Launcher 14 | . . . . 5 . 1 1 . . . . . 7 . . Special . | . . . . . . . . . . . . . . . . Kinetic 437 | . 110 6 48 . . 3 72 . . 55 18 . 112 . 13 Thermal . | . . . . . . . . . . . . . . . . Explosive 14 | . . . . 5 . 1 1 . . . . . 7 . . Electromagnetic . | . . . . . . . . . . . . . . . . Robot Hit Streak 14 | . 9 5 6 2 . 2 7 . . 12 14 . 14 . 12 Robot Miss Streak 8 | . 8 3 6 7 . 4 6 . . 2 1 . 4 . 1 Penetration Max . | . . . . . . . . . . . . . . . . Secondary Targets 4 | . 1 1 1 . . . . . . . 1 . . . . Max Gunslinging Chain 1 | . 1 1 1 . . . . . . . 1 . . . . Shots Hit Robots 288 | . 66 3 29 3 . 2 46 . . 38 11 . 78 . 12 Core Hits 158 | . 33 2 16 2 . 4 28 . . 18 8 . 47 . . Critical Kills . | . . . . . . . . . . . . . . . . Critical Parts Destroyed . | . . . . . . . . . . . . . . . . Critical Strikes 3 | . . . . . . . 3 . . . . . . . . Blast 3 | . . . . . . . 3 . . . . . . . . Melee Attacks . | . . . . . . . . . . . . . . . . Impact . | . . . . . . . . . . . . . . . . Slashing . | . . . . . . . . . . . . . . . . Piercing . | . . . . . . . . . . . . . . . . Sneak Attacks . | . . . . . . . . . . . . . . . . Combat Hostiles . | . . . . . . . . . . . . . . . . Follow-up Attacks . | . . . . . . . . . . . . . . . . Damage Inflicted 6014 | . 636 66 561 142 . 142 1250 . . 646 255 . 2078 . 238 Guns 4503 | . 627 58 543 . . 15 680 . . 646 255 . 1441 . 238 Cannons 268 | . . . . . . 24 244 . . . . . . . . Explosions 1208 | . . . . 142 . 103 326 . . . . . 637 . . Melee . | . . . . . . . . . . . . . . . . Ramming 35 | . 9 8 18 . . . . . . . . . . . . Kinetic 4771 | . 627 58 543 . . 39 924 . . 646 255 . 1441 . 238 Thermal . | . . . . . . . . . . . . . . . . Explosive 1208 | . . . . 142 . 103 326 . . . . . 637 . . Electromagnetic . | . . . . . . . . . . . . . . . . Impact . | . . . . . . . . . . . . . . . . Slashing . | . . . . . . . . . . . . . . . . Piercing . | . . . . . . . . . . . . . . . . Highest Corruption 9 | . . . . . . . . . 8 9 9 9 . . . Average Corruption 8 | . . . . . . . . . 8 8 9 9 . . . Corruption Purged . | . . . . . . . . . . . . . . . . Corruption Blocked . | . . . . . . . . . . . . . . . . Effects 33 | . . . . . . . . . 1 26 5 1 . . . Message Errors 7 | . . . . . . . . . . 7 . . . . . Matter Fused 9 | . . . . . . . . . . 6 2 1 . . . Heat Flow Errors 4 | . . . . . . . . . 1 2 1 . . . . Energy Discharges 5 | . . . . . . . . . . 4 1 . . . . Data Loss (minor) 4 | . . . . . . . . . . 3 1 . . . . Alerts 2 | . . . . . . . . . . 2 . . . . . Weapon Failures 2 | . . . . . . . . . . 2 . . . . . Overload Shots . | . . . . . . . . . . . . . . . . Overflow Damage 133 | . . . . . . 30 93 . . . . . 10 . . Projectiles 4 | . . . . . . . 4 . . . . . . . . Explosions 129 | . . . . . . 30 89 . . . . . 10 . . Melee . | . . . . . . . . . . . . . . . . Knockbacks 3 | . . . . . . . 3 . . . . . . . . Impact . | . . . . . . . . . . . . . . . . Kinetic 3 | . . . . . . . 3 . . . . . . . . Secondary . | . . . . . . . . . . . . . . . . Self-Inflicted Damage 112 | . . . . 7 . . . . . . . . 105 . . Shots 6 | . . . . 1 . . . . . . . . 5 . . Rammed 2 | . . 1 1 . . . . . . . . . . . . Targets Rammed 8 | . 3 2 3 . . . . . . . . . . . . Kicked 4 | . 3 1 . . . . . . . . . . . . . Crushed 2 | . . . 2 . . . . . . . . . . . . Highest Temperature 273 | . 12 . 74 . . 27 138 . 203 181 273 . 193 . 20 Average Temperature 56 | . 7 . 21 . . 15 41 . 190 58 102 . 69 . 12 Received Heat Transfer 1204 | . 222 . 96 . . . 288 . . . 9 . 189 . 400 Siege Activations . | . . . . . . . . . . . . . . . . Martial Activations . | . . . . . . . . . . . . . . . . Shielding Activations . | . . . . . . . . . . . . . . . . Robots Disrupted . | . . . . . . . . . . . . . . . . Combat Hostiles . | . . . . . . . . . . . . . . . . Robots Corrupted . | . . . . . . . . . . . . . . . . Combat Hostiles . | . . . . . . . . . . . . . . . . Parts Fried . | . . . . . . . . . . . . . . . . Impact Corruptions . | . . . . . . . . . . . . . . . . Robots Melted . | . . . . . . . . . . . . . . . . Combat Hostiles . | . . . . . . . . . . . . . . . . Parts Melted . | . . . . . . . . . . . . . . . . Heat Transferred . | . . . . . . . . . . . . . . . . Parts Sabotaged . | . . . . . . . . . . . . . . . . Parts Stolen . | . . . . . . . . . . . . . . . . Parts Stripped . | . . . . . . . . . . . . . . . . Power Chain Reactions . | . . . . . . . . . . . . . . . . Alert | -11 -10 -10 -9 -9 -9 -8 -8 -7 -7 -7 -7 -7 -6 -5 -5 ------- Run | Yrd Mat Min Mat Min Exi Min Mat Fac Was Fac Low Low Fac Fac DSF Maximum Alert Level 2 | . . . . . . . 2 1 . . . . 1 . . Low Security (%) 90 | 100 100 100 100 100 . 100 40 78 100 100 . . 77 100 100 Level 1 7 | . . . . . . . 34 21 . . . . 22 . . Level 2 2 | . . . . . . . 25 . . . . . . . . Level 3 . | . . . . . . . . . . . . . . . . Level 4 . | . . . . . . . . . . . . . . . . Level 5 . | . . . . . . . . . . . . . . . . High Security . | . . . . . . . . . . . . . . . . Max Security . | . . . . . . . . . . . . . . . . Peak Influence 449 | . 110 90 130 38 . 106 449 200 56 120 . . 309 142 65 Initial 200 | . . 34 . 38 . . 33 200 56 18 . . 92 142 65 Average 73 | . 66 19 22 7 . 51 259 180 44 43 . . 139 121 43 Influence Increases 2867 | . 375 156 350 10 . 106 640 . . 285 225 . 719 1 . Destroy 0b10 Robot/C 1520 | . 260 120 200 . . 80 300 . . 120 100 . 340 . . Destroy 0b10 Robot/NC 120 | . 15 . 35 . . 5 15 . . 25 . . 25 . . Destroy Leader 386 | . 54 20 66 . . 10 52 . . 58 20 . 106 . . Allied During Kill 26 | . . 16 10 . . . . . . . . . . . . Trap Triggered on 0b10 10 | . . . . . . . . . . 10 . . . . . Successful Hack 56 | . 16 . 8 . . . . . . 12 . . 19 1 . Disable Machine 135 | . . . 15 . . . 90 . . 30 . . . . . Destroy Structure 89 | . . . 1 10 . 11 33 . . . . . 34 . . Partial Spotted 75 | . . . . . . . . . . 30 . . 45 . . Lose Combat Pursuer 450 | . 30 . 15 . . . 150 . . . 105 . 150 . . Influence Decreases 2862 | . 286 245 251 109 . 20 285 281 134 227 102 60 575 199 88 Entered New Map 826 | . . 55 . 61 . . 53 241 104 8 32 40 55 149 28 Time Decay 1818 | . 266 190 221 48 . 20 222 40 30 211 70 10 440 50 . Lost Part 188 | . 20 . 10 . . . 10 . . 8 . 10 70 . 60 Lost Ally 30 | . . . 20 . . . . . . . . . 10 . . Squads Dispatched 23 | . 2 1 1 . . . 2 . . 7 . . 9 . 1 Investigation 7 | . 1 1 . . . . . . . 3 . . 2 . . Extermination 5 | . . . . . . . . . . 2 . . 3 . . Reinforcement 11 | . 1 . 1 . . . 2 . . 2 . . 4 . 1 Assault . | . . . . . . . . . . . . . . . . Garrison . | . . . . . . . . . . . . . . . . Intercept . | . . . . . . . . . . . . . . . . Searches Triggered . | . . . . . . . . . . . . . . . . Construction Impeded 1 | . . . . . . . . . . . . . 1 . . Haulers Reinforced 4 | . . . . . . . . . . 2 . . 2 . . Active Scanning Responses . | . . . . . . . . . . . . . . . . Cargo Convoy Interrupts 1 | . . . . . . . . . . 1 . . . . . Stealth | -11 -10 -10 -9 -9 -9 -8 -8 -7 -7 -7 -7 -7 -6 -5 -5 --------- Run | Yrd Mat Min Mat Min Exi Min Mat Fac Was Fac Low Low Fac Fac DSF Distress Signals 9 | . 3 . . . . . 4 . . 1 . . 1 . . Communications Jammed . | . . . . . . . . . . . . . . . . Distress Signals . | . . . . . . . . . . . . . . . . Times Spotted 147 | . 20 6 19 3 . 4 28 . 6 8 7 7 34 . 5 Peak Tracking Total 8 | . 5 3 3 1 . 4 8 . 6 4 7 7 6 . 4 Tactical Retreats 18 | . 2 . 1 1 . . 6 . . . 3 . 5 . . Traps | -11 -10 -10 -9 -9 -9 -8 -8 -7 -7 -7 -7 -7 -6 -5 -5 ------- Run | Yrd Mat Min Mat Min Exi Min Mat Fac Was Fac Low Low Fac Fac DSF Traps Triggered 7 | . 3 . . . . . 1 1 . . . . 1 . 1 Indirectly . | . . . . . . . . . . . . . . . . Trap Hack Attempts 2 | . . . . . . . . . . 2 . . . . . Triggered . | . . . . . . . . . . . . . . . . Disarmed . | . . . . . . . . . . . . . . . . Reprogrammed 1 | . . . . . . . . . . 1 . . . . . Reused 1 | . . . . . . . . . . 1 . . . . . Traps Extracted . | . . . . . . . . . . . . . . . . Installed . | . . . . . . . . . . . . . . . . Triggered 1 | . . . . . . . . . . 1 . . . . . Machines | -11 -10 -10 -9 -9 -9 -8 -8 -7 -7 -7 -7 -7 -6 -5 -5 ---------- Run | Yrd Mat Min Mat Min Exi Min Mat Fac Was Fac Low Low Fac Fac DSF Machines Disabled 9 | . . . 1 . . . 6 . . 2 . . . . . Max in Single Turn 2 | . . . 1 . . . 2 . . 2 . . . . . Machines Repaired . | . . . . . . . . . . . . . . . . Machines Dismantled . | . . . . . . . . . . . . . . . . Machines Sabotaged . | . . . . . . . . . . . . . . . . Overloaded Fab Kills . | . . . . . . . . . . . . . . . . Hacking | -11 -10 -10 -9 -9 -9 -8 -8 -7 -7 -7 -7 -7 -6 -5 -5 --------- Run | Yrd Mat Min Mat Min Exi Min Mat Fac Was Fac Low Low Fac Fac DSF Machines Accessed 25 | . 2 1 4 1 1 . 1 1 . 4 . . 9 1 . Terminals 14 | . 2 . 3 . . . . 1 . 2 . . 5 1 . Fabricators 4 | . . . . . . . . . . 2 . . 2 . . Repair Stations . | . . . . . . . . . . . . . . . . Recycling Units . | . . . . . . . . . . . . . . . . Scanalyzers 3 | . . . 1 . . . 1 . . . . . 1 . . Garrison Access 1 | . . . . . . . . . . . . . 1 . . Total Hacks 70 | . 6 1 11 1 1 . 9 5 . 15 . . 20 1 . Successful 36 | . 2 1 8 1 1 . 8 1 . 5 . . 8 1 . Failed 33 | . 4 . 3 . . . 1 4 . 10 . . 11 . . Catastrophic 5 | . 1 . . . . . . 2 . 1 . . 1 . . Database Lockouts 1 | . . . . . . . . . . . . . 1 . . Manual 31 | . 6 . 5 . 1 . . 5 . 5 . . 9 . . Terminals 37 | . 6 . 6 . . . . 5 . 8 . . 11 1 . Fabricators 13 | . . . . . . . . . . 7 . . 6 . . Repair Stations . | . . . . . . . . . . . . . . . . Recycling Units . | . . . . . . . . . . . . . . . . Scanalyzers 15 | . . . 5 . . . 9 . . . . . 1 . . Garrison Access 2 | . . . . . . . . . . . . . 2 . . Terminal Hacks 17 | . 2 1 3 1 1 . . 1 . 3 . . 4 1 . Record 2 | . . . . . . . . . . 1 . . 1 . . Part Schematic 1 | . . . . . . . . . . . . . 1 . . Open Door 2 | . . 1 . 1 . . . . . . . . . . . Open DSF 1 | . . . . . . . . . . . . . . 1 . Level Access Points 1 | . . . . . . . . . . . . . 1 . . Branch Access Points 3 | . 1 . 1 . . . . . . . . . 1 . . Terminal Index 3 | . 1 . 1 . . . . 1 . . . . . . . Recall Extermination 1 | . . . . . . . . . . 1 . . . . . Hauler Manifests 2 | . . . 1 . . . . . . 1 . . . . . Proto ID Catalog 1 | . . . . . 1 . . . . . . . . . . Fabricator Hacks 6 | . . . . . . . . . . 2 . . 4 . . Load Schematic 2 | . . . . . . . . . . 1 . . 1 . . Build 4 | . . . . . . . . . . 1 . . 3 . . Repair Station Hacks . | . . . . . . . . . . . . . . . . Recycling Unit Hacks . | . . . . . . . . . . . . . . . . Scanalyzer 13 | . . . 5 . . . 8 . . . . . . . . Insert Component 6 | . . . 2 . . . 4 . . . . . . . . Analyze 7 | . . . 3 . . . 4 . . . . . . . . Garrison Access Hacks . | . . . . . . . . . . . . . . . . Unauthorized Hacks . | . . . . . . . . . . . . . . . . Terminals . | . . . . . . . . . . . . . . . . Fabricators . | . . . . . . . . . . . . . . . . Repair Stations . | . . . . . . . . . . . . . . . . Recycling Units . | . . . . . . . . . . . . . . . . Scanalyzers . | . . . . . . . . . . . . . . . . Garrison Access . | . . . . . . . . . . . . . . . . Data Cores Recovered 1 | . . . . . . . . . . 1 . . . . . Used . | . . . . . . . . . . . . . . . . Hacking Detections 16 | . 2 . 2 . . . . 1 . 4 . . 7 . . Full Trace Events 7 | . 1 . 1 . . . . . . 3 . . 2 . . Feedback Events 2 | . . . . . . . . . . 2 . . . . . Corruption 1 | . . . . . . . . . . 1 . . . . . Hackware Fried 1 | . . . . . . . . . . 1 . . . . . Feedback Blocked . | . . . . . . . . . . . . . . . . Robot Schematics Acquired . | . . . . . . . . . . . . . . . . Robots Built 1 | . . . . . . . . . . . . . 1 . . Authchips . | . . . . . . . . . . . . . . . . Time 76 | . . . . . . . . . . . . . 76 . . Total Robot Build Rating 5 | . . . . . . . . . . . . . 5 . . Part Schematics Acquired 7 | . . . 2 . . . 4 . . . . . 1 . . Parts Built 4 | . . . . . . . . . . 1 . . 3 . . Authchips . | . . . . . . . . . . . . . . . . Time 167 | . . . . . . . . . . 36 . . 131 . . Total Part Build Rating 16 | . . . . . . . . . . 3 . . 13 . . Parts Repaired . | . . . . . . . . . . . . . . . . Time . | . . . . . . . . . . . . . . . . Parts Recycled . | . . . . . . . . . . . . . . . . Recycled Matter . | . . . . . . . . . . . . . . . . Retrieved Matter . | . . . . . . . . . . . . . . . . Retrieved Components . | . . . . . . . . . . . . . . . . Parts Scanalyzed 6 | . . . 2 . . . 4 . . . . . . . . Part Schematics Acquired 6 | . . . 2 . . . 4 . . . . . . . . Parts Damaged . | . . . . . . . . . . . . . . . . Bothacking | -11 -10 -10 -9 -9 -9 -8 -8 -7 -7 -7 -7 -7 -6 -5 -5 ------------ Run | Yrd Mat Min Mat Min Exi Min Mat Fac Was Fac Low Low Fac Fac DSF Used RIF Installer . | . . . . . . . . . . . . . . . . Robots Hacked . | . . . . . . . . . . . . . . . . Non-combat . | . . . . . . . . . . . . . . . . Combat . | . . . . . . . . . . . . . . . . Robot Hacks Applied . | . . . . . . . . . . . . . . . . Relay Couplers Released . | . . . . . . . . . . . . . . . . Fabnet Peak Effective % . | . . . . . . . . . . . . . . . . Robots Rewired . | . . . . . . . . . . . . . . . . Allies Hacked . | . . . . . . . . . . . . . . . . Hacks Repelled . | . . . . . . . . . . . . . . . . Allies | -11 -10 -10 -9 -9 -9 -8 -8 -7 -7 -7 -7 -7 -6 -5 -5 -------- Run | Yrd Mat Min Mat Min Exi Min Mat Fac Was Fac Low Low Fac Fac DSF Total Allies 3 | . . 2 . . . . . . . . . . 1 . . Largest Group 2 | . . 2 2 . . . . . . . . . 1 . . Highest-Rated Group 50 | . . 50 50 . . . . . . . . . 23 . . Highest-Rated Ally 31 | . . 31 31 . . . . . . . . . 23 . . Total Orders . | . . . . . . . . . . . . . . . . Ally Attacks 27 | . . 6 21 . . . . . . . . . . . . Total Damage 334 | . . 106 228 . . . . . . . . . . . . Kills 9 | . . 4 5 . . . . . . . . . . . . Allies Corrupted . | . . . . . . . . . . . . . . . . Allies Melted . | . . . . . . . . . . . . . . . . Intel | -11 -10 -10 -9 -9 -9 -8 -8 -7 -7 -7 -7 -7 -6 -5 -5 ------- Run | Yrd Mat Min Mat Min Exi Min Mat Fac Was Fac Low Low Fac Fac DSF Active Infowar (turns) 68 | . . . . . . . . . . . . . 14 . 54 Jamming 68 | . . . . . . . . . . . . . 14 . 54 Robot Analysis Total . | . . . . . . . . . . . . . . . . Derelict Logs Recovered 2 | . . 1 . . . . . . . . 1 . . . . Drone Launches . | . . . . . . . . . . . . . . . . Drone Recoveries . | . . . . . . . . . . . . . . . . Exploration | -11 -10 -10 -9 -9 -9 -8 -8 -7 -7 -7 -7 -7 -6 -5 -5 ------------- Run | Yrd Mat Min Mat Min Exi Min Mat Fac Was Fac Low Low Fac Fac DSF Turns Passed 6611 | 50 624 965 1431 269 487 61 478 94 62 657 145 22 1098 101 67 Spaces Moved 5835 | 41 321 631 603 149 284 32 362 176 120 945 217 43 1698 172 41 Core 48 | 16 19 . 1 . . . . . . . . . 1 . 11 Treads 1648 | . . 449 602 149 284 32 132 . . . . . . . . Legs 509 | 25 302 182 . . . . . . . . . . . . . Wheels . | . . . . . . . . . . . . . . . . Hover 21 | . . . . . . . . . . . . . . . 21 Flight 3609 | . . . . . . . 230 176 120 945 217 43 1697 172 9 Fastest Speed 43 | 50 120 120 160 170 170 170 50 50 50 50 50 50 50 50 43 Average Speed 94 | 92 125 148 216 170 170 170 94 50 50 50 50 50 50 50 65 Slowest Speed 1600 | 120 200 160 1600 170 170 170 250 50 50 50 50 50 550 50 180 Overloaded Moves . | . . . . . . . . . . . . . . . . Propulsion Burnouts . | . . . . . . . . . . . . . . . . Robots Hopped 36 | . . . . . . . 2 . . 13 . . 21 . . Potential Cave-ins 6 | . . . . . . . . . . . . . 6 . . Cave-ins Triggered . | . . . . . . . . . . . . . . . . Exploration Rate (%) 36 | 3 59 95 50 31 63 8 29 6 90 21 52 10 29 6 39 Regions Visited 15 Branch Regions 6 Pre-discovered Areas 2 | . . 2 . . . . . . . . . . . . . Known Exits Taken 4 | . 1 . 1 . . . . . . . . . 1 1 . Unknown Exits Taken 9 | 1 . 1 . 1 1 1 1 . . 1 1 1 . . . Scrap Searched 4 | . . 2 . 1 . . . . . . 1 . . . . Spaces Dug . | . . . . . . . . . . . . . . . . Terrain Destroyed 138 | . . . . 47 . 13 30 . . . . . 48 . . Melee . | . . . . . . . . . . . . . . . . Projectile 8 | . . . . . . . 8 . . . . . . . . AOE 130 | . . . . 47 . 13 22 . . . . . 48 . . Terrain Rammed . | . . . . . . . . . . . . . . . . Walls Destroyed . | . . . . . . . . . . . . . . . . Machines Disabled . | . . . . . . . . . . . . . . . . Actions | -11 -10 -10 -9 -9 -9 -8 -8 -7 -7 -7 -7 -7 -6 -5 -5 --------- Run | Yrd Mat Min Mat Min Exi Min Mat Fac Was Fac Low Low Fac Fac DSF Total 6554 | 52 455 656 694 159 290 36 445 181 121 1085 239 42 1846 186 67 Wait 297 | . 22 7 34 2 . . 23 . . 81 17 . 99 12 . Move 5750 | 40 320 630 602 148 283 31 357 176 119 918 216 42 1656 171 41 Hop 35 | . . . . . . . 2 . . 13 . . 20 . . Pick Up 108 | 6 22 4 17 1 1 . 16 3 1 20 . . 15 2 . Fast Attach 23 | 1 3 3 3 . . . . 1 . 3 . . 4 . 5 Attach 47 | 5 7 . 5 . . 1 10 1 . 3 . . 9 1 5 Detach 3 | . . . 1 . . 1 1 . . . . . . . . Swap 20 | . 6 . 3 2 1 1 1 . . 4 . . 2 . . Drop 87 | . 17 7 10 1 5 . 10 . 1 22 . . 10 . 4 Fire 169 | . 55 3 16 5 . 2 25 . . 19 6 . 31 . 7 Melee . | . . . . . . . . . . . . . . . . Ram . | . . . . . . . . . . . . . . . . Kick 4 | . 3 1 . . . . . . . . . . . . . Crush 4 | . . 1 3 . . . . . . . . . . . . Escape Stasis 5 | . . . . . . . . . . . . . . . 5 Rewire . | . . . . . . . . . . . . . . . . Trap 2 | . . . . . . . . . . 2 . . . . . Miscellaneous . | . . . . . . . . . . . . . . . . Route ------- -11/Scrapyard -10/Materials (discovered 3 exits: *Mat / *Min x2) -10/Mines (discovered 2 exits: *Mat x2) -9/Materials (discovered 3 exits: *Mat / *Min x2) -9/Mines (discovered 2 exits: *Mat / *Exi) -9/Exiles -8/Mines -8/Materials -7/Factory -7/Waste -7/Factory (discovered 2 exits: *Fac / [*Low]) -7/Lower Caves -7/Lower Caves -6/Factory (discovered 6 exits: *Fac x4 / Low x2) -5/Factory -5/DSF History --------- Turn | Location | Event 12 | -11/Scrapyard | Discovered new exit (range 15) 51 | -11/Scrapyard | Entered Materials 250 | -10/Materials | Discovered new exit (range 16) 311 | -10/Materials | Build established: Mutant 399 | -10/Materials | Discovered new exit (range 12) 408 | -10/Materials | Discovered new exit (range 15) 507 | -10/Materials | Identified exit to Mines 675 | -10/Materials | Entered Mines 726 | -10/Mines | Met a Derelict bent on vengeance 1079 | -10/Mines | Learned location of Storage (-7) 1267 | -10/Mines | Found a hidden stash of uninstalled traps 1296 | -10/Mines | Met a Derelict shopkeep closing up shop 1605 | -10/Mines | Discovered new exit (range 3) 1629 | -10/Mines | Discovered new exit (range 5) 1640 | -10/Mines | Entered Materials 1640 | -9/Materials | Accompanied by 2 allies 1640 | -9/Materials | Evolved 2 slots: Propulsion x1, Weapon x1 1645 | -9/Materials | Led the pair of lost Derelicts to an unsafe place 1929 | -9/Materials | Build established: Gunner 2183 | -9/Materials | Identified exit to Mines 2201 | -9/Materials | Discovered new exit (range 6) 3071 | -9/Materials | Entered Mines 3141 | -9/Mines | Assembled infested the area 3151 | -9/Mines | Met a Derelict who couldn't figure out how to use a Trap Extractor 3277 | -9/Mines | Discovered new exit (range 14) 3331 | -9/Mines | Deemed a non-threat by the Exiles lab entrance 3333 | -9/Mines | Discovered new exit (range 5) 3340 | -9/Mines | Entered Exiles 3381 | -9/Exiles | Met 8R-AWN 3410 | -9/Exiles | Met EX-HEX 3461 | -9/Exiles | Met EX-BIN 3587 | -9/Exiles | Aligned with FarCom system 3589 | -9/Exiles | Given EX-Vault access code 3631 | -9/Exiles | Opened EX-Vault 3656 | -9/Exiles | Found Flying Fortress v7 3694 | -9/Exiles | Warned to stay clear of 0b10 Research branches 3747 | -9/Exiles | Met EX-DEC 3808 | -9/Exiles | Discovered new exit (range 14) 3827 | -9/Exiles | Left Exiles lab with Flying Fortress v7 3827 | -9/Exiles | Entered Mines 3877 | -8/Mines | Discovered new exit (range 5) 3888 | -8/Mines | Entered Materials 3888 | -8/Materials | Evolved 2 slots: Propulsion x1, Utility x1 4119 | -8/Materials | Build established: Skirmisher 4334 | -8/Materials | Discovered new exit (range 16) 4366 | -8/Materials | Entered Factory 4366 | -7/Factory | Evolved 2 slots: Utility x2 4460 | -7/Factory | Sucked down chute 4460 | -7/Factory | Entered Waste 4475 | -7/Waste | EMP discharged 4484 | -7/Waste | Spotted C-40 Crusher 4487 | -7/Waste | Spotted C-40 Crusher 4495 | -7/Waste | Spotted C-40 Crusher 4496 | -7/Waste | Spotted C-40 Crusher 4502 | -7/Waste | Spotted C-40 Crusher 4507 | -7/Waste | Spotted C-40 Crusher 4516 | -7/Waste | Discovered new exit (range 11) 4522 | -7/Waste | Entered Factory 4542 | -7/Factory | System Shield fried by hacking feedback 4696 | -7/Factory | Build established: Tank 4804 | -7/Factory | Discovered new exit (range 4) 4924 | -7/Factory | Fabricated Hacking Suite? 4968 | -7/Factory | Discovered new exit (range 6) 5143 | -7/Factory | Cargo convoy interrupted 5179 | -7/Factory | Entered Lower Caves 5180 | -7/Lower Caves | Encountered a Warlord checkpoint 5181 | -7/Lower Caves | Learned 4 Factory zone layouts 5197 | -7/Lower Caves | Attracted the attention of an 0b10 outpost 5292 | -7/Lower Caves | Discovered new exit (range 10) 5324 | -7/Lower Caves | Entered another Lower Caves area 5340 | -7/Lower Caves | Discovered new exit (range 12) 5346 | -7/Lower Caves | Entered Factory 5346 | -6/Factory | Evolved 2 slots: Utility x1, Weapon x1 5634 | -6/Factory | Build established: Hacker-Tank 5818 | -6/Factory | Central database locked down 5862 | -6/Factory | Fabricated Imp. Kinecellerator? 5958 | -6/Factory | Fabricated A-15 Conveyor? 6049 | -6/Factory | Identified exit to Lower Caves 6156 | -6/Factory | Fabricated Med. Storage Unit? 6224 | -6/Factory | Destroyed 7 combat bots 6270 | -6/Factory | Lost 6 parts (1p2u3w) 6347 | -6/Factory | Identified exit to Factory 6444 | -6/Factory | Entered another Factory area 6444 | -5/Factory | Evolved 2 slots: Propulsion x1, Utility x1 6533 | -5/Factory | Identified exit to DSF 6545 | -5/Factory | Build established: Hacker-Mutant 6545 | -5/Factory | Entered DSF 6583 | -5/DSF | Additional patrols routed to DSF 6602 | -5/DSF | Core integrity fell below 50% 6609 | -5/DSF | Core integrity fell below 20% 6612 | -5/DSF | Destroyed by H-71 Marshal with Heavy Mass Driver Last Messages --------------- Knocked back. Linear Gravjet destroyed. Gravmag System destroyed. Dropped Angular Momentum Engine. Imp. Hacking Suite destroyed. Critical hit (Blast). Knocked back. C-35 Carver system corrupted by crushing effect. C-35 Carver destroyed. Dropped Med. Storage Unit. Acquired 5 matter. Transmission Jammer severed. Knocked back. Discarded Hacking Suite. Acquired Adv. Hacking Suite. Penetrated by Slug. Discarded Hacking Suite. Acquired Adv. Hacking Suite. Adv. Hacking Suite severed. Adv. Hacking Suite destroyed. Map ----- +----------------------------------------------------+ | | | | | | | | | | | | | | | ????????????????????????????????????????????????? | | ????????????????????????????????????????????????? | | ????????????????????????????????????????????????? | | ????????????????????????????????????????????????? | | ?????????""#????????????????????????????????????? | | ?????????#"#????????????????????????????????????? | | ??????####"##???????#########???????????????????? | | ??????#"""""######### !!! #???????????????????? | | ??????#"""""##!!#!!!# !!! #???????????????????? | | ???#"##"" = #???????????????????? | | ???#""""" ^ != [ #???????????????????? | | ????###"" ##!!#!!!### ###???????????????????? | | ??????### ###!!#!!!##;]x!;##???????????????????? | | ???????## ##########! =%*!!#???????????????????? | | ???????#! !!#??????# ! *!!#???????????????????? | | ???????#! !!#??????# !!#???????????????????? | | ???????##=*###??????#;;% #%#???????????????????? | | ???????#!!%!!#??????#[[ c !!#???????????????????? | | ???????#! =!!#??????#[[ @ !!#???????????????????? | | ???????#! !!#??????#[[ !!#???????????????????? | | ???????## ###??????### ###???????????????????? | | ???????? #??????????# #?????????????????????? | | ???????? #??????????A A?????????????????????? | | ????????* ?????????? H ????????????????????? | | ????????* ????????? ???????????????????? | | ????????* ????????? ???????????????????? | | ????????! ##???????##A A##!??????????????????? | | ???????!! #?????????## ##?!!?????????????????? | | ???????## #??????????# #?????????????????????? | | ????????? ]??????????! !?????????????????????? | | ????????? ]??????????! !?????????????????????? | | ????????? ]??????????! !?????????????????????? | | ????????? #??????????# #?????????????????????? | | ??????????????????????? ??????????????????????? | | ????????????????????????????????????????????????? | | ????????????????????????????????????????????????? | | ????????????????????????????????????????????????? | | ????????????????????????????????????????????????? | | ????????????????????????????????????????????????? | | ????????????????????????????????????????????????? | | ????????????????????????????????????????????????? | | ????????????????????????????????????????????????? | | ????????????????????????????????????????????????? | +----------------------------------------------------+ Best States ------------- Heat Dissipation 40 Energy Generation 18 Energy Capacity 300 Matter Stores 300 Matter Capacity 300 Sight Range 16 Terrain Scan Density 10 Jamming Range 12 Armor Coverage 375 Propulsion Shielding 33 Evasion (%) 60 Targeting Accuracy 6 Recoil Reduction 3 Offensive Hacking 70 Defensive Hacking 10 Item Schematics ----------------- Hacking Suite | -9/Materials | Scanalyzed Hpw. Shotgun | -9/Materials | Scanalyzed Minigun | -8/Materials | Scanalyzed Airjet | -8/Materials | Scanalyzed Adv. Visual Processing Unit | -8/Materials | Scanalyzed Rocket Launcher | -8/Materials | Scanalyzed Med. Storage Unit | -6/Factory | Hacked Robot Schematics ------------------ None Fabricated ------------ Hacking Suite | x1 | -7/Factory Imp. Kinecellerator | x2 | -6/Factory | Preloaded A-15 Conveyor | x1 | -6/Factory | Preloaded Med. Storage Unit | x1 | -6/Factory Repaired ---------- Nothing Alien Tech Used ----------------- None Achievements -------------- None Challenges ------------ None Game ------ Seed TitaniumHelicalBooster Manual? 0 Play Time 01:22:54 Cumulative 36.9 hours Start 2025.08.26 @ 23:12:29 End 2025.08.27 @ 00:34:16 Sessions 1 Manual Loads 0 Difficulty Rogue Special Mode None Game No. 48 Rogue 38 Adventurer 10 Explorer 0 Win Type - Total 0 Types 0/0/0/0/0/0/0/0/0/0 Lore% 10 Gallery% 24 Achievement% 28 Wizard Run 0 Options --------- Layout 1 ASCII 0 Keyboard 0 Movement Arrows Keybinds 0 Fullscreen 1 Font 24/Smallcaps Map View 50x35 Zoom Use 0% Tactical HUD 0 Map Filters NONE Filters NONE Steam 1 RUN: e5f07a78-3dfd-445c-8afe-725251b6811f